[Event "Titled Tuesday Blitz November 29 Early 2022"]
[White "Ankudinova, Yelena"]
[Black "Gjestemoen-VonHirsch, Andre"]
[WhiteFideId "13702114"]
[BlackFideId "1539531"]
[WhiteElo "1930"]
[BlackElo "2198"]
[Result "1/2-1/2"]
[Round "04"]
[TimeControl "180+1"]
[Date "2022.11.30"]
[WhiteClock "0:01:40"]
[BlackClock "0:01:34"]

1. c4 {[%clk 0:02:57]}  g6 {[%clk 0:02:59]} 2. Nc3 {[%clk 0:02:56]}  Bg7 {[%clk 0:03:00]} 3. g3 {[%clk 0:02:56]}  Nf6 {[%clk 0:02:59]} 4. Bg2 {[%clk 0:02:56]}  O-O {[%clk 0:02:59]} 5. Nf3 {[%clk 0:02:53]}  d6 {[%clk 0:03:00]} 6. d4 {[%clk 0:02:53]}  Nbd7 {[%clk 0:03:00]} 7. d5 {[%clk 0:02:53]}  c5 {[%clk 0:02:59]} 8. dxc6 {[%clk 0:02:51]}  bxc6 {[%clk 0:03:00]} 9. Nd4 {[%clk 0:02:50]}  Bb7 {[%clk 0:02:45]} 10. Bxc6 {[%clk 0:02:36]}  Bxc6 {[%clk 0:02:44]} 11. Nxc6 {[%clk 0:02:36]}  Qe8 {[%clk 0:02:44]} 12. Nd4 {[%clk 0:02:31]}  Rc8 {[%clk 0:02:31]} 13. b3 {[%clk 0:02:28]}  e5 {[%clk 0:02:23]} 14. Nc2 {[%clk 0:02:22]}  Qe6 {[%clk 0:02:21]} 15. O-O {[%clk 0:02:15]}  Qh3 {[%clk 0:02:14]} 16. f3 {[%clk 0:02:15]}  Nh5 {[%clk 0:01:59]} 17. e4 {[%clk 0:01:45]}  Nxg3 {[%clk 0:01:51]} 18. hxg3 {[%clk 0:01:41]}  Qxg3+ {[%clk 0:01:52]} 19. Kh1 {[%clk 0:01:41]}  Qh3+ {[%clk 0:01:31]} 20. Kg1 {[%clk 0:01:40]}  Qg3+ {[%clk 0:01:32]} 21. Kh1 {[%clk 0:01:40]}  Qh3+ {[%clk 0:01:33]} 22. Kg1 {[%clk 0:01:40]}  Qg3+ {[%clk 0:01:34]} 1/2-1/2


[Site "https://www.chess.com"]

[Event "Titled Tuesday Blitz November 29 Early 2022"]
[White "Arbunic Castro, Giovanna"]
[Black "Zatonskih, Anna"]
[WhiteFideId "3400549"]
[BlackFideId "14101572"]
[WhiteElo "1937"]
[BlackElo "2362"]
[Result "0-1"]
[Round "04"]
[TimeControl "180+1"]
[Date "2022.11.30"]
[WhiteClock "0:00:52"]
[BlackClock "0:02:15"]

1. e4 {[%clk 0:02:51]}  d5 {[%clk 0:02:59]} 2. exd5 {[%clk 0:02:50]}  Qxd5 {[%clk 0:03:00]} 3. Nc3 {[%clk 0:02:47]}  Qd6 {[%clk 0:03:00]} 4. Bc4 {[%clk 0:02:47]}  Nf6 {[%clk 0:02:58]} 5. d4 {[%clk 0:02:46]}  c6 {[%clk 0:02:59]} 6. Nf3 {[%clk 0:02:46]}  Bg4 {[%clk 0:02:58]} 7. Be3 {[%clk 0:02:42]}  e6 {[%clk 0:02:59]} 8. O-O {[%clk 0:02:40]}  Nbd7 {[%clk 0:02:58]} 9. h3 {[%clk 0:02:39]}  Bh5 {[%clk 0:02:57]} 10. Be2 {[%clk 0:02:29]}  Qc7 {[%clk 0:02:55]} 11. Qd2 {[%clk 0:02:25]}  Bd6 {[%clk 0:02:54]} 12. Bg5 {[%clk 0:02:10]}  h6 {[%clk 0:02:51]} 13. Be3 {[%clk 0:01:56]}  O-O {[%clk 0:02:51]} 14. Bxh6 {[%clk 0:01:47]}  gxh6 {[%clk 0:02:44]} 15. g4 {[%clk 0:01:39]}  Bg6 {[%clk 0:02:40]} 16. Qxh6 {[%clk 0:01:37]}  Bf4 {[%clk 0:02:31]} 17. Qh4 {[%clk 0:01:35]}  Kg7 {[%clk 0:02:28]} 18. g5 {[%clk 0:00:55]}  Rh8 {[%clk 0:02:16]} 19. gxf6+ {[%clk 0:00:52]}  Nxf6 {[%clk 0:02:15]} 0-1


[Site "https://www.chess.com"]

[Event "Titled Tuesday Blitz November 29 Early 2022"]
[White "Ardila, Oscar Humberto"]
[Black "Dudzinski, Pawel"]
[WhiteFideId "4404742"]
[BlackFideId "1117890"]
[WhiteElo "1959"]
[BlackElo "2086"]
[Result "0-1"]
[Round "04"]
[TimeControl "180+1"]
[Date "2022.11.30"]
[WhiteClock "0:01:09"]
[BlackClock "0:00:48"]

1. d4 {[%clk 0:02:52]}  d5 {[%clk 0:01:46]} 2. c4 {[%clk 0:02:50]}  e6 {[%clk 0:01:46]} 3. Nc3 {[%clk 0:02:48]}  c6 {[%clk 0:01:46]} 4. cxd5 {[%clk 0:02:48]}  cxd5 {[%clk 0:01:47]} 5. Nf3 {[%clk 0:02:47]}  f5 {[%clk 0:01:47]} 6. g3 {[%clk 0:02:43]}  Nf6 {[%clk 0:01:48]} 7. Bg2 {[%clk 0:02:43]}  Be7 {[%clk 0:01:49]} 8. O-O {[%clk 0:02:43]}  O-O {[%clk 0:01:49]} 9. Bg5 {[%clk 0:02:42]}  Nc6 {[%clk 0:01:49]} 10. e3 {[%clk 0:02:42]}  Bd7 {[%clk 0:01:48]} 11. Rc1 {[%clk 0:02:40]}  Be8 {[%clk 0:01:47]} 12. Qe2 {[%clk 0:02:39]}  Bh5 {[%clk 0:01:47]} 13. Qb5 {[%clk 0:02:37]}  Bxf3 {[%clk 0:01:45]} 14. Bxf3 {[%clk 0:02:37]}  Qd7 {[%clk 0:01:39]} 15. h4 {[%clk 0:02:32]}  h6 {[%clk 0:01:37]} 16. Bxf6 {[%clk 0:02:28]}  Bxf6 {[%clk 0:01:36]} 17. Kg2 {[%clk 0:02:24]}  Rf7 {[%clk 0:01:35]} 18. a4 {[%clk 0:02:07]}  a6 {[%clk 0:01:33]} 19. Qb6 {[%clk 0:02:04]}  Bd8 {[%clk 0:01:33]} 20. Qb3 {[%clk 0:02:03]}  Na5 {[%clk 0:01:32]} 21. Qa2 {[%clk 0:02:02]}  Nc4 {[%clk 0:01:30]} 22. b3 {[%clk 0:02:01]}  Nd6 {[%clk 0:01:30]} 23. Ne2 {[%clk 0:01:59]}  g5 {[%clk 0:01:28]} 24. hxg5 {[%clk 0:01:58]}  hxg5 {[%clk 0:01:29]} 25. Rh1 {[%clk 0:01:59]}  g4 {[%clk 0:01:29]} 26. Bxg4 {[%clk 0:01:55]}  fxg4 {[%clk 0:01:30]} 27. Rh4 {[%clk 0:01:55]}  Bxh4 {[%clk 0:01:29]} 28. gxh4 {[%clk 0:01:54]}  Ne4 {[%clk 0:01:26]} 29. Nf4 {[%clk 0:01:54]}  Rxf4 {[%clk 0:01:23]} 30. exf4 {[%clk 0:01:53]}  Rc8 {[%clk 0:01:23]} 31. Rxc8+ {[%clk 0:01:46]}  Qxc8 {[%clk 0:01:24]} 32. Qe2 {[%clk 0:01:46]}  Nf6 {[%clk 0:01:18]} 33. Qe5 {[%clk 0:01:46]}  Kf7 {[%clk 0:01:19]} 34. h5 {[%clk 0:01:21]}  Qc2 {[%clk 0:01:12]} 35. Kg3 {[%clk 0:01:13]}  Qxb3+ {[%clk 0:00:51]} 36. Kh4 {[%clk 0:01:11]}  Qh3+ {[%clk 0:00:47]} 37. Kg5 {[%clk 0:01:09]}  Qxh5# {[%clk 0:00:48]} 0-1


[Site "https://www.chess.com"]

[Event "Titled Tuesday Blitz November 29 Early 2022"]
[White "Atakhan, Abtin"]
[Black "Bethke, Richard"]
[WhiteFideId "22502203"]
[BlackFideId "12959243"]
[WhiteElo "2298"]
[BlackElo "2369"]
[Result "0-1"]
[Round "04"]
[TimeControl "180+1"]
[Date "2022.11.30"]
[WhiteClock "0:00:06"]
[BlackClock "0:00:17"]

1. c4 {[%clk 0:03:00]}  Nf6 {[%clk 0:02:58]} 2. Nc3 {[%clk 0:03:00]}  e6 {[%clk 0:02:58]} 3. e4 {[%clk 0:03:01]}  d5 {[%clk 0:02:59]} 4. e5 {[%clk 0:03:01]}  d4 {[%clk 0:02:54]} 5. exf6 {[%clk 0:03:01]}  dxc3 {[%clk 0:02:54]} 6. bxc3 {[%clk 0:03:02]}  Qxf6 {[%clk 0:02:54]} 7. d4 {[%clk 0:02:59]}  b6 {[%clk 0:02:54]} 8. Be2 {[%clk 0:02:59]}  Bb7 {[%clk 0:02:54]} 9. Bf3 {[%clk 0:03:00]}  Bxf3 {[%clk 0:02:54]} 10. Nxf3 {[%clk 0:03:01]}  c6 {[%clk 0:02:53]} 11. Qa4 {[%clk 0:03:01]}  Bd6 {[%clk 0:02:53]} 12. O-O {[%clk 0:03:00]}  O-O {[%clk 0:02:53]} 13. Re1 {[%clk 0:02:54]}  Qf5 {[%clk 0:02:51]} 14. Ne5 {[%clk 0:02:38]}  Rc8 {[%clk 0:02:49]} 15. c5 {[%clk 0:02:12]}  bxc5 {[%clk 0:02:43]} 16. Ba3 {[%clk 0:02:12]}  f6 {[%clk 0:02:23]} 17. Nc4 {[%clk 0:01:56]}  Bc7 {[%clk 0:02:06]} 18. Bxc5 {[%clk 0:01:51]}  Nd7 {[%clk 0:02:02]} 19. Bd6 {[%clk 0:01:22]}  Qd5 {[%clk 0:01:11]} 20. Bxc7 {[%clk 0:01:18]}  Rxc7 {[%clk 0:01:12]} 21. Ne3 {[%clk 0:01:07]}  Qb5 {[%clk 0:01:11]} 22. Qb3 {[%clk 0:01:04]}  Qxb3 {[%clk 0:01:11]} 23. axb3 {[%clk 0:01:05]}  Kf7 {[%clk 0:01:10]} 24. b4 {[%clk 0:01:06]}  Nb6 {[%clk 0:01:08]} 25. Ra6 {[%clk 0:01:03]}  Rd8 {[%clk 0:01:06]} 26. Rea1 {[%clk 0:01:03]}  Rdd7 {[%clk 0:01:06]} 27. R1a5 {[%clk 0:00:56]}  e5 {[%clk 0:01:00]} 28. dxe5 {[%clk 0:00:45]}  Nc4 {[%clk 0:00:59]} 29. Rc5 {[%clk 0:00:32]}  Nxe5 {[%clk 0:00:58]} 30. f4 {[%clk 0:00:26]}  Nd3 {[%clk 0:00:56]} 31. Rcxc6 {[%clk 0:00:27]}  Rxc6 {[%clk 0:00:56]} 32. Rxc6 {[%clk 0:00:27]}  Re7 {[%clk 0:00:57]} 33. Nc2 {[%clk 0:00:19]}  Re2 {[%clk 0:00:48]} 34. Rd6 {[%clk 0:00:17]}  Nxf4 {[%clk 0:00:47]} 35. Nd4 {[%clk 0:00:14]}  Rxg2+ {[%clk 0:00:47]} 36. Kf1 {[%clk 0:00:15]}  Rxh2 {[%clk 0:00:46]} 37. Rd7+ {[%clk 0:00:15]}  Kg6 {[%clk 0:00:46]} 38. Rxa7 {[%clk 0:00:16]}  Nd5 {[%clk 0:00:42]} 39. b5 {[%clk 0:00:10]}  Rb2 {[%clk 0:00:37]} 40. Ra3 {[%clk 0:00:07]}  h5 {[%clk 0:00:32]} 41. c4 {[%clk 0:00:07]}  Nc7 {[%clk 0:00:23]} 42. Ra7 {[%clk 0:00:06]}  Ne8 {[%clk 0:00:16]} 43. c5 {[%clk 0:00:06]}  h4 {[%clk 0:00:17]} 0-1


[Site "https://www.chess.com"]

[Event "Titled Tuesday Blitz November 29 Early 2022"]
[White "Averjanov, Alexey"]
[Black "Malka, Samuel"]
[WhiteFideId "14109867"]
[BlackFideId "20643675"]
[WhiteElo "2624"]
[BlackElo "2455"]
[Result "1/2-1/2"]
[Round "04"]
[TimeControl "180+1"]
[Date "2022.11.30"]
[WhiteClock "0:01:43"]
[BlackClock "0:00:44"]

1. d4 {[%clk 0:03:00]}  d5 {[%clk 0:02:57]} 2. c4 {[%clk 0:03:00]}  e6 {[%clk 0:02:55]} 3. Nf3 {[%clk 0:03:00]}  Nf6 {[%clk 0:02:55]} 4. e3 {[%clk 0:03:00]}  Be7 {[%clk 0:02:50]} 5. Nbd2 {[%clk 0:03:00]}  O-O {[%clk 0:02:49]} 6. Bd3 {[%clk 0:02:59]}  c5 {[%clk 0:02:48]} 7. b3 {[%clk 0:02:59]}  Nc6 {[%clk 0:02:47]} 8. Bb2 {[%clk 0:02:59]}  b6 {[%clk 0:02:46]} 9. O-O {[%clk 0:02:59]}  Bb7 {[%clk 0:02:47]} 10. Qe2 {[%clk 0:02:59]}  Rc8 {[%clk 0:02:33]} 11. Rac1 {[%clk 0:02:58]}  cxd4 {[%clk 0:02:12]} 12. Nxd4 {[%clk 0:02:58]}  Nxd4 {[%clk 0:02:00]} 13. Bxd4 {[%clk 0:02:57]}  Nd7 {[%clk 0:01:50]} 14. Rfd1 {[%clk 0:02:56]}  e5 {[%clk 0:01:38]} 15. Bb2 {[%clk 0:02:55]}  e4 {[%clk 0:01:38]} 16. Bb1 {[%clk 0:02:54]}  Bf6 {[%clk 0:01:37]} 17. Bxf6 {[%clk 0:02:51]}  Nxf6 {[%clk 0:01:33]} 18. cxd5 {[%clk 0:02:51]}  Rxc1 {[%clk 0:01:33]} 19. Rxc1 {[%clk 0:02:51]}  Qxd5 {[%clk 0:01:25]} 20. Nf1 {[%clk 0:02:43]}  Rc8 {[%clk 0:01:09]} 21. Rxc8+ {[%clk 0:02:42]}  Bxc8 {[%clk 0:01:10]} 22. Ng3 {[%clk 0:02:42]}  Bg4 {[%clk 0:01:08]} 23. Qc2 {[%clk 0:02:41]}  h5 {[%clk 0:01:03]} 24. h3 {[%clk 0:02:37]}  Bf5 {[%clk 0:00:59]} 25. Nxf5 {[%clk 0:02:31]}  Qxf5 {[%clk 0:01:00]} 26. Qc7 {[%clk 0:02:23]}  Qc5 {[%clk 0:00:56]} 27. Qd8+ {[%clk 0:02:14]}  Kh7 {[%clk 0:00:55]} 28. Qd2 {[%clk 0:02:13]}  Qe5 {[%clk 0:00:52]} 29. Qc1 {[%clk 0:02:05]}  g6 {[%clk 0:00:51]} 30. Kf1 {[%clk 0:02:02]}  Kg7 {[%clk 0:00:51]} 31. Ke1 {[%clk 0:01:59]}  Qa5+ {[%clk 0:00:51]} 32. Qd2 {[%clk 0:01:57]}  Qe5 {[%clk 0:00:47]} 33. Ke2 {[%clk 0:01:44]}  Qb5+ {[%clk 0:00:44]} 34. Ke1 {[%clk 0:01:43]}  Qe5 {[%clk 0:00:44]} 35. Ke2 {[%clk 0:01:43]}  Qb5+ {[%clk 0:00:43]} 36. Ke1 {[%clk 0:01:43]}  Qe5 {[%clk 0:00:44]} 1/2-1/2


[Site "https://www.chess.com"]

[Event "Titled Tuesday Blitz November 29 Early 2022"]
[White "Baches Garcia, Guillermo"]
[Black "Trost, Edvin"]
[WhiteFideId "2209764"]
[BlackFideId "1729519"]
[WhiteElo "2467"]
[BlackElo "2247"]
[Result "0-1"]
[Round "04"]
[TimeControl "180+1"]
[Date "2022.11.30"]
[WhiteClock "0:00:23"]
[BlackClock "0:02:06"]

1. e4 {[%clk 0:03:00]}  c5 {[%clk 0:02:58]} 2. Nf3 {[%clk 0:03:01]}  d6 {[%clk 0:02:59]} 3. d4 {[%clk 0:03:01]}  cxd4 {[%clk 0:03:00]} 4. Nxd4 {[%clk 0:03:01]}  Nf6 {[%clk 0:03:00]} 5. Nc3 {[%clk 0:03:02]}  g6 {[%clk 0:03:01]} 6. g3 {[%clk 0:03:01]}  Bg7 {[%clk 0:02:51]} 7. Bg2 {[%clk 0:03:01]}  O-O {[%clk 0:02:52]} 8. O-O {[%clk 0:03:01]}  Nc6 {[%clk 0:02:51]} 9. Nde2 {[%clk 0:03:01]}  Rb8 {[%clk 0:02:49]} 10. a4 {[%clk 0:03:01]}  a6 {[%clk 0:02:49]} 11. Nd5 {[%clk 0:02:59]}  b5 {[%clk 0:02:47]} 12. axb5 {[%clk 0:02:58]}  axb5 {[%clk 0:02:48]} 13. h3 {[%clk 0:02:52]}  e6 {[%clk 0:02:43]} 14. Ndf4 {[%clk 0:02:49]}  Bb7 {[%clk 0:02:39]} 15. Nd3 {[%clk 0:02:29]}  Qc7 {[%clk 0:02:31]} 16. Be3 {[%clk 0:02:15]}  Ne5 {[%clk 0:02:29]} 17. Nxe5 {[%clk 0:02:05]}  dxe5 {[%clk 0:02:30]} 18. Ra7 {[%clk 0:01:54]}  Ra8 {[%clk 0:02:26]} 19. Rxa8 {[%clk 0:01:41]}  Rxa8 {[%clk 0:02:27]} 20. Qd3 {[%clk 0:01:24]}  b4 {[%clk 0:02:20]} 21. c4 {[%clk 0:01:17]}  bxc3 {[%clk 0:02:15]} 22. Nxc3 {[%clk 0:01:16]}  Ba6 {[%clk 0:02:15]} 23. Ra1 {[%clk 0:01:07]}  Bxd3 {[%clk 0:02:10]} 24. Rxa8+ {[%clk 0:01:07]}  Bf8 {[%clk 0:02:10]} 25. Bh6 {[%clk 0:00:34]}  Nd7 {[%clk 0:02:09]} 26. Bf1 {[%clk 0:00:22]}  Bxf1 {[%clk 0:02:07]} 27. Kxf1 {[%clk 0:00:23]}  Nb8 {[%clk 0:02:06]} 0-1


[Site "https://www.chess.com"]

[Event "Titled Tuesday Blitz November 29 Early 2022"]
[White "Bai, Adelard"]
[Black "Molina, Roberto Junio Brito"]
[WhiteFideId "16301188"]
[BlackFideId "2109450"]
[WhiteElo "2299"]
[BlackElo "2388"]
[Result "0-1"]
[Round "04"]
[TimeControl "180+1"]
[Date "2022.11.30"]
[WhiteClock "0:00:01"]
[BlackClock "0:00:24"]

1. d4 {[%clk 0:03:00]}  d5 {[%clk 0:03:00]} 2. c4 {[%clk 0:03:00]}  c6 {[%clk 0:03:00]} 3. cxd5 {[%clk 0:02:58]}  cxd5 {[%clk 0:03:01]} 4. Bf4 {[%clk 0:02:58]}  Qb6 {[%clk 0:03:00]} 5. Nc3 {[%clk 0:02:52]}  Nf6 {[%clk 0:02:59]} 6. e3 {[%clk 0:02:50]}  Qxb2 {[%clk 0:02:58]} 7. Nge2 {[%clk 0:02:28]}  a6 {[%clk 0:02:51]} 8. Na4 {[%clk 0:01:35]}  Qb4+ {[%clk 0:02:43]} 9. Nec3 {[%clk 0:01:32]}  b5 {[%clk 0:02:28]} 10. Rb1 {[%clk 0:01:24]}  Qa5 {[%clk 0:02:28]} 11. Bxb5+ {[%clk 0:01:15]}  axb5 {[%clk 0:02:26]} 12. Rxb5 {[%clk 0:01:16]}  Qa7 {[%clk 0:02:09]} 13. Nb6 {[%clk 0:01:16]}  Nbd7 {[%clk 0:01:45]} 14. Nxa8 {[%clk 0:01:09]}  Qxa8 {[%clk 0:01:46]} 15. O-O {[%clk 0:01:09]}  e6 {[%clk 0:01:38]} 16. Qb3 {[%clk 0:00:21]}  Ba6 {[%clk 0:01:38]} 17. Qa4 {[%clk 0:00:14]}  Qc6 {[%clk 0:01:34]} 18. Rfb1 {[%clk 0:00:06]}  Bxb5 {[%clk 0:01:20]} 19. Nxb5 {[%clk 0:00:07]}  Nb6 {[%clk 0:00:31]} 20. Nc7+ {[%clk 0:00:02]}  Kd7 {[%clk 0:00:31]} 21. Qa7 {[%clk 0:00:01]}  Nc8 {[%clk 0:00:28]} 22. Qb8 {[%clk 0:00:02]}  Bd6 {[%clk 0:00:24]} 23. Bxd6 {[%clk 0:00:01]}  Qxd6 {[%clk 0:00:25]} 24. Qb7 {[%clk 0:00:01]}  Qc6 {[%clk 0:00:24]} 0-1


[Site "https://www.chess.com"]

[Event "Titled Tuesday Blitz November 29 Early 2022"]
[White "Barash, Anton"]
[Black "Migot, Tangi"]
[WhiteFideId "30935229"]
[BlackFideId "662445"]
[WhiteElo "2316"]
[BlackElo "2583"]
[Result "0-1"]
[Round "04"]
[TimeControl "180+1"]
[Date "2022.11.30"]
[WhiteClock "0:00:15"]
[BlackClock "0:00:18"]

1. e4 {[%clk 0:03:00]}  Nf6 {[%clk 0:02:59]} 2. Nc3 {[%clk 0:03:00]}  d5 {[%clk 0:02:58]} 3. exd5 {[%clk 0:03:01]}  Nxd5 {[%clk 0:02:59]} 4. Bc4 {[%clk 0:03:01]}  Nxc3 {[%clk 0:02:59]} 5. Qf3 {[%clk 0:03:01]}  e6 {[%clk 0:02:58]} 6. dxc3 {[%clk 0:03:01]}  Nd7 {[%clk 0:02:57]} 7. Qg3 {[%clk 0:03:01]}  Nb6 {[%clk 0:02:55]} 8. Bd3 {[%clk 0:02:59]}  Bd7 {[%clk 0:02:55]} 9. Bf4 {[%clk 0:02:59]}  Nd5 {[%clk 0:02:49]} 10. Bg5 {[%clk 0:02:50]}  Bd6 {[%clk 0:02:35]} 11. Bxd8 {[%clk 0:02:33]}  Bxg3 {[%clk 0:02:35]} 12. hxg3 {[%clk 0:02:31]}  Rxd8 {[%clk 0:02:33]} 13. Nf3 {[%clk 0:02:31]}  Ke7 {[%clk 0:02:28]} 14. O-O-O {[%clk 0:02:30]}  h6 {[%clk 0:02:18]} 15. a3 {[%clk 0:02:29]}  Nf6 {[%clk 0:02:08]} 16. Ne5 {[%clk 0:02:26]}  Bc8 {[%clk 0:02:08]} 17. f3 {[%clk 0:02:22]}  Rd5 {[%clk 0:02:03]} 18. f4 {[%clk 0:02:00]}  Rhd8 {[%clk 0:01:48]} 19. Rde1 {[%clk 0:01:54]}  Nd7 {[%clk 0:01:42]} 20. Nxd7 {[%clk 0:01:21]}  R5xd7 {[%clk 0:01:39]} 21. f5 {[%clk 0:01:21]}  Rd6 {[%clk 0:01:38]} 22. Rh4 {[%clk 0:01:20]}  Kf8 {[%clk 0:01:26]} 23. fxe6 {[%clk 0:01:19]}  Rxe6 {[%clk 0:01:23]} 24. Rf1 {[%clk 0:01:17]}  f6 {[%clk 0:01:10]} 25. Rc4 {[%clk 0:01:14]}  c6 {[%clk 0:01:10]} 26. Ra4 {[%clk 0:01:11]}  a6 {[%clk 0:01:09]} 27. Rb4 {[%clk 0:01:04]}  Re3 {[%clk 0:01:00]} 28. Rf3 {[%clk 0:01:01]}  Re1+ {[%clk 0:00:53]} 29. Kd2 {[%clk 0:01:01]}  Re5 {[%clk 0:00:54]} 30. Rb6 {[%clk 0:01:00]}  Bg4 {[%clk 0:00:49]} 31. Rf4 {[%clk 0:00:59]}  Re2+ {[%clk 0:00:43]} 32. Kc1 {[%clk 0:00:53]}  Re1+ {[%clk 0:00:36]} 33. Kd2 {[%clk 0:00:52]}  Rd1+ {[%clk 0:00:30]} 34. Ke3 {[%clk 0:00:52]}  Re8+ {[%clk 0:00:29]} 35. Kd4 {[%clk 0:00:53]}  Bc8 {[%clk 0:00:26]} 36. Kc5 {[%clk 0:00:49]}  Rde1 {[%clk 0:00:25]} 37. Bc4 {[%clk 0:00:34]}  R1e5+ {[%clk 0:00:23]} 38. Kd6 {[%clk 0:00:33]}  R5e7 {[%clk 0:00:20]} 39. Bd3 {[%clk 0:00:24]}  Rd8+ {[%clk 0:00:21]} 40. Kc5 {[%clk 0:00:25]}  Re5+ {[%clk 0:00:21]} 41. Kb4 {[%clk 0:00:24]}  a5+ {[%clk 0:00:18]} 42. Ka4 {[%clk 0:00:23]}  Ke7 {[%clk 0:00:17]} 43. b4 {[%clk 0:00:23]}  axb4 {[%clk 0:00:16]} 44. cxb4 {[%clk 0:00:24]}  Kd6 {[%clk 0:00:17]} 45. c4 {[%clk 0:00:23]}  Kc7 {[%clk 0:00:17]} 46. c5 {[%clk 0:00:15]}  Rxd3 {[%clk 0:00:18]} 0-1


[Site "https://www.chess.com"]

[Event "Titled Tuesday Blitz November 29 Early 2022"]
[White "Bashirli, Saadat"]
[Black "Lucas, Arthur"]
[WhiteFideId "13429990"]
[BlackFideId "26093073"]
[WhiteElo "1408"]
[BlackElo "2251"]
[Result "0-1"]
[Round "04"]
[TimeControl "180+1"]
[Date "2022.11.30"]
[WhiteClock "0:00:02"]
[BlackClock "0:00:03"]

1. d4 {[%clk 0:03:00]}  d5 {[%clk 0:02:58]} 2. c4 {[%clk 0:03:00]}  e6 {[%clk 0:02:59]} 3. Nc3 {[%clk 0:03:00]}  a6 {[%clk 0:03:00]} 4. cxd5 {[%clk 0:02:58]}  exd5 {[%clk 0:03:00]} 5. Bf4 {[%clk 0:02:57]}  Nf6 {[%clk 0:02:51]} 6. Qc2 {[%clk 0:02:50]}  Bd6 {[%clk 0:02:48]} 7. Bg5 {[%clk 0:02:49]}  c6 {[%clk 0:02:44]} 8. e3 {[%clk 0:02:48]}  h6 {[%clk 0:02:41]} 9. Bh4 {[%clk 0:02:47]}  O-O {[%clk 0:02:33]} 10. Bd3 {[%clk 0:02:47]}  Nbd7 {[%clk 0:02:29]} 11. Nge2 {[%clk 0:02:47]}  Re8 {[%clk 0:02:29]} 12. O-O {[%clk 0:02:47]}  Qc7 {[%clk 0:02:19]} 13. Bg3 {[%clk 0:02:42]}  Bxg3 {[%clk 0:02:15]} 14. Nxg3 {[%clk 0:02:43]}  Nf8 {[%clk 0:02:11]} 15. Rae1 {[%clk 0:02:39]}  Bd7 {[%clk 0:01:59]} 16. f3 {[%clk 0:02:37]}  c5 {[%clk 0:01:46]} 17. Bf5 {[%clk 0:02:25]}  cxd4 {[%clk 0:01:43]} 18. exd4 {[%clk 0:02:23]}  Qf4 {[%clk 0:01:34]} 19. Rd1 {[%clk 0:02:06]}  g6 {[%clk 0:01:16]} 20. Bxd7 {[%clk 0:02:04]}  N8xd7 {[%clk 0:01:17]} 21. Qb3 {[%clk 0:01:57]}  Qd6 {[%clk 0:01:05]} 22. Rfe1 {[%clk 0:01:33]}  b5 {[%clk 0:01:00]} 23. Kf2 {[%clk 0:01:26]}  h5 {[%clk 0:00:59]} 24. h4 {[%clk 0:01:22]}  Nb6 {[%clk 0:00:52]} 25. Qc2 {[%clk 0:01:13]}  Qf4 {[%clk 0:00:42]} 26. Nge2 {[%clk 0:00:47]}  Qxh4+ {[%clk 0:00:36]} 27. Kg1 {[%clk 0:00:46]}  Nc4 {[%clk 0:00:30]} 28. Qb3 {[%clk 0:00:39]}  Re3 {[%clk 0:00:22]} 29. Rc1 {[%clk 0:00:27]}  Rae8 {[%clk 0:00:21]} 30. Qc2 {[%clk 0:00:22]}  b4 {[%clk 0:00:16]} 31. Na4 {[%clk 0:00:20]}  Qg5 {[%clk 0:00:09]} 32. Rcd1 {[%clk 0:00:12]}  Rxf3 {[%clk 0:00:05]} 33. Qc1 {[%clk 0:00:10]}  Rfe3 {[%clk 0:00:04]} 34. Nc5 {[%clk 0:00:03]}  Ng4 {[%clk 0:00:03]} 35. Nd7 {[%clk 0:00:01]}  Qh4 {[%clk 0:00:03]} 36. Ne5 {[%clk 0:00:01]}  Qh2+ {[%clk 0:00:03]} 37. Kf1 {[%clk 0:00:02]}  Qh1+ {[%clk 0:00:03]} 38. Ng1 {[%clk 0:00:03]}  Nh2+ {[%clk 0:00:03]} 39. Kf2 {[%clk 0:00:02]}  Rxe1 {[%clk 0:00:02]} 40. Rxe1 {[%clk 0:00:02]}  Nxe5 {[%clk 0:00:02]} 41. dxe5 {[%clk 0:00:02]}  Ng4+ {[%clk 0:00:03]} 42. Kf1 {[%clk 0:00:02]}  Qh2 {[%clk 0:00:02]} 43. Qd2 {[%clk 0:00:02]}  Rxe5 {[%clk 0:00:02]} 44. Rxe5 {[%clk 0:00:02]}  Qxe5 {[%clk 0:00:03]} 45. Qe2 {[%clk 0:00:02]}  Qf5+ {[%clk 0:00:03]} 46. Qf2 {[%clk 0:00:02]}  Qxf2# {[%clk 0:00:03]} 0-1


[Site "https://www.chess.com"]

[Event "Titled Tuesday Blitz November 29 Early 2022"]
[White "Begunov, Konstantin"]
[Black "Zemlyanskii, Ivan"]
[WhiteFideId "4118510"]
[BlackFideId "24249971"]
[WhiteElo "2140"]
[BlackElo "2107"]
[Result "0-1"]
[Round "04"]
[TimeControl "180+1"]
[Date "2022.11.30"]
[WhiteClock "0:00:10"]
[BlackClock "0:01:07"]

1. d4 {[%clk 0:03:00]}  d5 {[%clk 0:02:58]} 2. c4 {[%clk 0:03:01]}  e6 {[%clk 0:02:56]} 3. Nc3 {[%clk 0:03:01]}  c6 {[%clk 0:02:56]} 4. cxd5 {[%clk 0:03:01]}  exd5 {[%clk 0:02:57]} 5. Nf3 {[%clk 0:03:00]}  Nf6 {[%clk 0:02:58]} 6. Bg5 {[%clk 0:03:00]}  h6 {[%clk 0:02:56]} 7. Bh4 {[%clk 0:02:59]}  Bf5 {[%clk 0:02:54]} 8. Qb3 {[%clk 0:02:59]}  Nbd7 {[%clk 0:02:47]} 9. Qxb7 {[%clk 0:02:50]}  Rb8 {[%clk 0:02:47]} 10. Qxc6 {[%clk 0:02:48]}  Rxb2 {[%clk 0:02:45]} 11. Bxf6 {[%clk 0:02:36]}  gxf6 {[%clk 0:02:15]} 12. Qxd5 {[%clk 0:01:08]}  Be6 {[%clk 0:01:54]} 13. Qe4 {[%clk 0:01:01]}  Bb4 {[%clk 0:01:54]} 14. Rc1 {[%clk 0:01:00]}  Qa5 {[%clk 0:01:33]} 15. Qd3 {[%clk 0:00:51]}  O-O {[%clk 0:01:26]} 16. Nd2 {[%clk 0:00:24]}  Rc8 {[%clk 0:01:22]} 17. Nde4 {[%clk 0:00:23]}  f5 {[%clk 0:01:20]} 18. Qg3+ {[%clk 0:00:17]}  Kh7 {[%clk 0:01:16]} 19. Nc5 {[%clk 0:00:13]}  Nxc5 {[%clk 0:01:13]} 20. dxc5 {[%clk 0:00:12]}  Rxc5 {[%clk 0:01:14]} 21. f3 {[%clk 0:00:11]}  Bxc3+ {[%clk 0:01:08]} 22. Kf2 {[%clk 0:00:10]}  Bd4# {[%clk 0:01:07]} 0-1


[Site "https://www.chess.com"]